bitfinex/quotes_ETHUSD_20250815
["timestamp","ask_amount","ask_price","bid_price","bid_amount"]
[1755271737047,5.5198,4440.1,4440.0,0.00845455]
[1755271737247,10.114,4440.1,4440.0,0.00845455]
[1755271737450,10.113,4440.1,4440.0,0.00845455]
[1755271737750,10.111,4440.1,4440.0,0.43985455]
[1755271737928,10.11,4440.1,4440.0,4.0576068]
[1755271738125,5.407,4440.1,4440.0,4.0576068]
[1755271738320,4.7,4440.1,4440.0,1.80535455]
[1755271738517,4.7,4441.0,4440.0,4.4652054]
[1755271738718,4.7,4441.0,4440.1,0.4314]
[1755271738932,4.7,4441.0,4440.2,2.2521508]
[1755271739133,2.25155057,4441.4,4440.6,2.25193223]
[1755271739355,6.94861158,4441.3,4440.2,2.2521508]
[1755271739652,5.1483,4441.2,4440.0,0.00845455]
[1755271739858,0.65416553,4441.3,4440.3,2.25207375]
[1755271740055,5.408,4441.8,4440.1,0.4314]
[1755271740269,5.408,4441.8,4441.7,2.25139023]
[1755271740417,5.408,4441.8,4441.6,0.0225144]
[1755271740635,5.408,4441.8,4441.7,2.25139023]
[1755271740834,10.105,4441.8,4441.7,2.25139023]
[1755271741236,5.408,4443.5,4440.1,0.55]
[1755271741436,0.5408,4443.4,4441.7,0.4314]
[1755271741675,2.25092717,4442.7,4441.0,0.4314]
[1755271741881,4.691,4442.6,4441.0,0.4314]
[1755271742044,4.69,4442.5,4441.0,0.4314]
[1755271742257,2.25122894,4442.1,4440.4,0.4314]
[1755271742482,0.22512289,4442.0,4441.5,2.25145698]
[1755271742645,0.45752575,4443.1,4441.6,0.4314]
[1755271742992,4.681,4443.0,4441.6,0.4314]
[1755271743142,2.25083459,4442.8,4441.9,2.25126485]
[1755271743336,2.25102971,4442.5,4441.5,2.25147912]
[1755271743563,2.2510916,4442.3,4441.4,2.25151528]
[1755271743775,0.45785579,4443.1,4441.4,1.3655]
[1755271743983,4.675,4443.0,4441.4,1.3655]
[1755271744134,1.12567236,4443.2,4442.3,2.25106273]
[1755271744474,4.672,4443.1,4442.3,2.25105801]
[1755271744676,5.29761292,4443.1,4441.4,1.3655]
[1755271745025,0.15061292,4443.1,4441.4,1.3655]
[1755271745276,0.4513,4445.9,4443.2,1.12409867]
[1755271745482,0.4513,4445.5,4444.8,12.12904011]
[1755271745695,2.24986725,4444.8,4443.6,12.12904011]
[1755271745901,6.4414,4444.7,4443.0,12.12904011]
[1755271746079,5.1698,4444.6,4443.0,12.12904011]
[1755271746299,0.4408,4444.6,4443.0,12.12904011]
[1755271746601,0.4408,4444.6,4443.8,12.12904011]
[1755271746815,4.89419,4444.5,4442.1,0.59870937]
[1755271747015,0.17019,4444.5,4442.5,0.55]
[1755271747174,0.4408,4446.4,4445.7,2.24935007]
[1755271747379,3.55824976,4446.8,4442.5,0.59870937]
[1755271747380,4.728,4446.3,4445.2,0.1128]
[1755271747556,0.1128,4446.3,4444.5,0.02249971]
[1755271747756,0.1128,4446.8,4446.1,0.1128]
[1755271747997,4.724,4446.7,4446.1,0.1128]
[1755271748162,4.723,4447.4,4446.1,0.16514577]
[1755271748363,4.723,4447.4,4446.2,0.02249111]
[1755271748564,4.723,4447.4,4446.0,0.17187824]
[1755271748783,4.723,4447.4,4446.8,2.24878624]
[1755271748968,4.723,4447.4,4445.7,0.17135015]
[1755271749184,2.24882029,4446.8,4445.0,0.59870937]
[1755271749386,2.24881279,4446.8,4444.6,2.84863062]
[1755271749742,4.723,4447.4,4444.2,0.1635]
[1755271749743,0.4408,4446.7,4444.2,2.25007671]
[1755271749862,12.12904011,4445.9,4443.5,0.59870937]
[1755271750205,12.12904011,4445.9,4443.3,2.25054456]
[1755271750206,2.25010234,4444.3,4442.4,0.59870937]
[1755271750409,5.405,4444.6,4442.1,0.17267054]
[1755271750569,4.718,4444.5,4442.5,0.02250984]
[1755271750757,4.715,4444.4,4442.3,0.55]
[1755271750994,4.715,4444.4,4442.8,1.14870937]
[1755271751197,4.715,4444.4,4441.9,2.25128563]
[1755271751198,4.715,4444.4,4442.3,2.25108614]
[1755271751398,4.715,4444.4,4444.0,2.25022]
[1755271751602,4.707,4444.3,4444.2,2.25012375]
[1755271751787,5.405,4444.6,4444.5,1.81275451]
[1755271752106,10.111,4444.6,4444.4,0.11704968]
[1755271752319,5.405,4444.6,4444.5,0.0008]
[1755271752461,10.108,4444.6,4444.5,0.0008]
[1755271752897,10.108,4444.6,4444.5,2.25077187]
[1755271753213,5.405,4446.3,4444.5,2.25074041]
[1755271753505,4.697,4446.2,4445.8,2.24930922]
[1755271753808,4.697,4446.1,4446.0,2.24921277]
[1755271754004,4.691,4446.3,4444.5,0.5508]
[1755271754302,4.691,4446.2,4446.1,2.24916218]
[1755271754501,4.694,4446.2,4446.1,2.24916218]
[1755271754717,4.694,4446.2,4444.5,0.16843446]
[1755271755009,4.694,4446.2,4445.4,2.24946699]
[1755271755158,4.694,4446.2,4444.7,2.24987063]
[1755271755361,4.694,4446.2,4444.5,0.0008]
[1755271755654,0.4408,4446.1,4444.5,0.0008]
[1755271755783,2.24935275,4445.8,4444.7,2.24984944]
[1755271755987,0.4408,4446.1,4444.5,0.0008]
[1755271756363,0.002,4445.4,4444.5,0.0008]
[1755271756564,4.674,4445.3,4444.8,2.24980738]
[1755271756765,4.672,4445.2,4444.5,0.0008]
[1755271756966,0.002,4445.4,4445.1,2.24965876]
[1755271757295,4.67,4445.3,4444.7,2.24987063]
[1755271757495,0.002,4445.4,4445.3,2.24956695]
[1755271757700,4.666,4445.4,4445.3,2.24956695]
[1755271757989,0.002,4445.4,4445.3,2.24956695]
[1755271758191,0.002,4445.4,4445.3,2.36236695]
[1755271758577,0.002,4445.4,4445.0,2.24971491]
[1755271758790,0.002,4445.4,4445.0,0.1128]
[1755271758998,0.4428,4445.4,4445.0,0.1128]
[1755271759175,0.4428,4445.4,4444.8,0.1128]
[1755271759553,0.4428,4445.4,4444.5,0.0008]
[1755271759706,0.1128,4444.9,4444.5,0.0008]
[1755271759893,4.648,4444.8,4444.5,0.0008]
[1755271760095,6.3982,4444.8,4444.5,0.0008]
[1755271760344,4.643,4444.7,4444.5,0.0008]
[1755271760489,0.1128,4444.9,4444.6,2.24992125]
[1755271760723,2.24992125,4444.6,4444.5,0.0008]
[1755271760993,4.11292125,4444.6,4444.5,0.0008]
[1755271761844,8.74792125,4444.6,4444.5,0.0008]
[1755271763091,6.498,4444.6,4444.5,0.0008]
[1755271763291,8.73392125,4444.6,4444.5,0.0008]
[1755271765044,2.25066162,4443.2,4441.1,2.25166201]
[1755271765199,4.606,4443.1,4442.3,2.25108457]
[1755271765393,4.606,4443.1,4442.6,2.25090533]
[1755271765742,2.25049927,4443.5,4440.9,0.001]
[1755271765743,0.4408,4444.0,4441.4,0.001]
[1755271765946,1.3094,4444.5,4441.4,3.02351542]
[1755271766240,1.3094,4444.5,4441.8,2.25133954]
[1755271766408,5.404,4445.3,4443.9,2.25025139]
[1755271766606,5.404,4445.3,4442.1,3.0]
[1755271766607,4.594,4445.2,4444.0,0.02250225]
[1755271766790,5.404,4445.3,4443.7,0.02250376]
[1755271767013,30.0,4443.7,4442.7,0.80044965]
[1755271767234,2.25088347,4442.7,4438.9,7.08757673]
[1755271767550,12.29848642,4442.6,4440.9,2.2517902]
[1755271767831,5.8448,4442.6,4439.5,0.0235]
[1755271768042,4.621,4442.5,4440.3,0.023521]
[1755271768454,2.25108614,4442.3,4440.3,0.001]
[1755271768651,1.77270579,4442.4,4440.3,0.001]
[1755271768958,1.97268968,4442.4,4440.3,0.001]
[1755271769094,2.25113682,4442.2,4440.4,2.25200305]
[1755271769298,2.25153716,4441.5,4440.4,2.25200305]
[1755271769506,4.615,4441.4,4440.4,2.25200305]
[1755271769740,4.615,4441.4,4440.5,2.25198665]
[1755271770040,4.609,4441.9,4440.3,0.001]
[1755271770245,4.609,4441.9,4440.4,2.25204936]
[1755271770532,4.609,4441.9,4440.3,0.023521]
[1755271770533,4.609,4441.9,4440.3,0.001]
[1755271770738,0.4408,4443.5,4440.4,0.0235]
[1755271770897,0.4408,4444.2,4440.7,3.0]
[1755271771242,0.4408,4444.2,4443.1,2.25067295]
[1755271771243,5.0488,4444.2,4443.1,2.25067295]
[1755271771408,5.0488,4444.2,4441.9,2.25128886]
[1755271771739,2.25017438,4444.1,4443.1,2.25063612]
[1755271771944,5.0488,4444.2,4442.7,2.25083863]
[1755271771945,2.25022878,4444.0,4442.7,2.25083863]
[1755271772110,4.608,4444.2,4441.6,2.25144092]
[1755271772451,4.6,4444.7,4442.4,5.25103547]
[1755271772596,4.6,4444.7,4444.2,2.25012171]
[1755271772797,4.6,4444.7,4442.8,2.2508328]
[1755271773099,0.002,4445.4,4442.8,2.2508328]
[1755271773100,4.603,4444.8,4442.9,2.25078214]
[1755271773337,0.4428,4445.4,4442.9,2.25078214]
[1755271773631,5.0428,4445.4,4443.0,5.25073148]
[1755271773824,5.0428,4445.4,4442.5,3.0235]
[1755271773825,2.24956695,4445.3,4442.5,3.0235]
[1755271774145,1.77270579,4445.2,4441.6,0.3819]
[1755271774297,3.99986817,4445.1,4441.3,2.251593]
[1755271774639,2.25057793,4443.4,4441.8,2.25130012]
[1755271774797,4.595,4443.3,4442.2,2.25111997]
[1755271774999,2.27314663,4443.2,4441.2,2.25164369]
[1755271775233,2.27314663,4443.2,4442.0,0.1128]
[1755271775234,0.1128,4442.6,4442.0,0.1128]
[1755271775433,5.0338,4442.5,4442.0,0.1128]
[1755271775609,4.593,4442.5,4442.0,0.1128]
[1755271775936,1.7502,4442.4,4442.0,0.1128]
[1755271776703,0.4699,4442.3,4442.1,2.25115232]
[1755271776907,0.4699,4442.3,4439.0,12.1287994]
[1755271776908,2.25149807,4441.5,4439.0,12.1287994]
[1755271777135,8.70762792,4442.3,4442.0,0.001]
[1755271777136,2.2511875,4442.1,4442.0,0.001]
[1755271777321,2.2511875,4442.1,4439.7,2.25236026]
[1755271777322,2.25148856,4441.6,4439.7,2.25236026]
[1755271777530,2.25148856,4441.6,4440.3,2.25209465]
[1755271777857,0.4699,4441.5,4439.3,0.01886646]
[1755271778148,2.25162232,4441.3,4439.3,0.01886646]
[1755271778305,4.574,4441.2,4439.7,2.25238622]
[1755271778833,4.569,4441.2,4440.5,2.25199864]
[1755271779142,4.569,4441.2,4440.5,2.25195037]
[1755271779438,0.4699,4441.1,4440.0,0.00845455]
[1755271780052,0.02250579,4441.0,4440.0,0.00845455]
[1755271780352,2.25196297,4440.6,4440.0,0.00845455]
[1755271780520,0.49240579,4441.1,4440.0,0.00845455]
[1755271780715,5.9626,4441.2,4440.0,0.00845455]
[1755271780716,0.4699,4440.5,4440.0,0.00845455]
[1755271780926,6.4265,4440.5,4440.0,0.00845455]
[1755271781457,0.4699,4441.1,4440.0,0.00845455]
[1755271782066,2.25183891,4440.9,4440.0,2.26070536]
[1755271782341,0.4699,4441.1,4440.0,2.26070536]
[1755271782342,0.4699,4441.1,4440.0,0.00845455]
[1755271782543,1.8635,4440.8,4440.0,0.00845455]
[1755271782748,2.25199864,4440.5,4440.0,0.00845455]
[1755271782914,6.4125,4440.7,4440.0,0.00845455]
[1755271783121,1.8635,4440.5,4440.0,0.00845455]
[1755271783359,4.11549864,4440.5,4440.0,0.00845455]
[1755271783558,4.542,4440.6,4440.0,0.00845455]
[1755271783928,4.5412,4440.6,4440.0,2.26069767]
[1755271784128,4.5412,4440.6,4440.0,2.26068858]
[1755271784333,5.0111,4440.6,4440.0,2.2606814]
[1755271784534,0.4699,4440.5,4440.0,0.00845455]
[1755271784755,0.4699,4441.4,4440.0,0.00845455]
[1755271784917,4.538,4441.3,4440.0,0.00845455]
[1755271785117,4.538,4441.3,4440.2,2.25212347]
[1755271785444,4.538,4441.3,4440.9,2.25179309]
[1755271785648,5.0079,4441.3,4441.1,2.25169438]
[1755271785850,5.0079,4441.3,4441.0,2.25174141]
[1755271786050,6.7996,4441.7,4440.3,2.25205479]
[1755271786251,2.25107484,4442.4,4440.7,2.25186896]
[1755271786438,2.25107484,4442.4,4440.4,2.25301076]
[1755271786439,4.528,4442.3,4440.4,2.25301076]
[1755271786639,6.77909096,4442.3,4441.6,2.2514152]
[1755271786843,0.4699,4442.2,4441.4,2.25149176]
[1755271787039,0.1128,4441.9,4441.3,0.1128]
[1755271787240,0.4699,4441.8,4441.1,2.25168127]
[1755271787439,0.4699,4441.8,4440.4,0.001]
[1755271787440,0.1128,4441.4,4441.2,2.25159339]
[1755271787673,0.1128,4441.4,4440.4,2.25300744]
[1755271787674,1.8635,4441.3,4440.4,0.001]
[1755271787873,0.1128,4440.5,4440.4,0.001]
[1755271788058,6.88479864,4440.5,4440.4,0.001]
[1755271788255,8.74829864,4440.5,4440.4,0.001]
[1755271788461,6.4963,4440.5,4438.8,4.12696743]
[1755271788659,0.1128,4440.1,4438.8,4.12696743]
[1755271788834,2.25230938,4439.9,4438.8,6.37982856]
[1755271789038,6.7693537,4439.8,4438.8,4.12696743]
[1755271789250,6.7693537,4439.8,4438.5,20.2020202]
[1755271789251,2.25296264,4438.6,4438.5,20.2020202]
[1755271789440,8.63346264,4438.6,4438.5,18.7630202]
[1755271789971,8.63346264,4438.6,4435.2,2.25468393]
[1755271789972,6.2935,4438.6,4435.2,2.25468393]
[1755271790143,4.88600579,4438.5,4435.2,2.25468291]
[1755271790474,4.88600579,4438.5,4434.7,20.2020202]
[1755271790475,4.8635,4438.5,4435.5,0.4333]
[1755271790635,1.88600579,4438.4,4435.5,0.4333]
[1755271790858,1.88600579,4438.4,4434.7,20.2020202]
[1755271790859,2.25362269,4437.3,4434.7,20.6353202]
[1755271791204,4.54350579,4437.3,4434.7,20.2020202]
[1755271791412,4.54350579,4437.3,4434.8,0.02254893]
[1755271791413,0.4699,4437.3,4434.8,0.02254893]
[1755271791705,0.4699,4438.6,4434.9,4.3279]
[1755271791866,2.2534092,4437.8,4435.0,0.4333]
[1755271792063,6.41100579,4437.7,4436.8,0.003]
[1755271792258,4.525,4437.6,4436.8,0.003]
[1755271792486,4.525,4437.6,4436.9,2.25377557]
[1755271792764,4.525,4437.6,4437.5,2.25352112]
[1755271793183,4.525,4437.6,4437.4,2.25355721]
[1755271793461,0.4699,4438.9,4436.9,2.25382586]
[1755271793661,4.518,4438.8,4437.1,2.25370307]
[1755271793898,4.518,4438.8,4437.0,0.4333]
[1755271793899,4.518,4438.8,4438.1,2.25320795]
[1755271794096,4.518,4438.8,4438.5,0.001]
[1755271794264,5.9116,4438.8,4438.5,0.001]
[1755271794462,5.408,4439.4,4438.5,0.001]
[1755271794661,0.02250579,4439.3,4438.5,0.001]
[1755271794861,4.511,4439.2,4438.5,0.001]
[1755271795119,4.511,4439.2,4438.6,2.25296264]
[1755271795410,4.511,4439.2,4438.5,0.001]
[1755271795727,0.21188285,4440.4,4438.5,0.4343]
[1755271795861,0.21188285,4440.4,4439.2,2.25265813]
[1755271796062,5.411,4442.7,4440.3,2.25205157]
[1755271796375,4.54,4442.6,4440.5,2.25199864]
[1755271796568,1.88600579,4442.5,4440.8,2.25182832]
[1755271796900,1.88600579,4442.5,4440.0,2.25225225]
[1755271797197,2.25113682,4442.2,4440.3,2.25206646]
[1755271797363,0.002,4443.5,4440.4,3.02252049]
[1755271797567,0.002,4443.5,4443.4,2.25052887]
[1755271798094,0.002,4443.5,4442.2,0.4333]
[1755271798298,0.002,4443.5,4441.1,2.25165842]
[1755271798299,1.88600579,4443.4,4438.5,2.42306286]
[1755271798483,1.88600579,4443.4,4440.6,0.4333]
[1755271798484,2.06297711,4443.3,4440.6,0.4333]
[1755271798685,2.25073148,4443.0,4440.6,0.4333]
[1755271798895,0.1128,4441.1,4440.5,0.1128]
[1755271799202,4.548,4441.0,4440.5,0.1128]
[1755271799370,4.548,4441.0,4440.6,2.25194793]
[1755271799572,4.548,4441.0,4439.8,0.4333]
[1755271799898,4.548,4441.0,4440.2,0.1128]
[1755271799899,0.1128,4440.8,4440.2,0.1128]
[1755271800501,4.534,4440.9,4440.2,0.1128]
[1755271800684,0.1128,4441.0,4440.2,0.1128]
[1755271800890,0.1128,4441.0,4440.8,2.25181619]
[1755271801093,1.3936,4443.0,4440.9,0.02251795]
[1755271801297,0.002,4443.5,4442.9,2.25074226]
[1755271801470,0.002,4443.5,4440.7,3.0]
[1755271801471,0.002,4443.5,4443.2,2.25062169]
[1755271801675,0.002,4443.5,4442.4,2.25103547]
[1755271801909,0.002,4443.5,4443.4,2.25052887]
[1755271802222,0.002,4444.4,4443.4,0.02250528]
[1755271802373,0.002,4444.4,4443.5,1.7612]
[1755271802574,1e-08,4444.4,4444.3,2.25007312]
[1755271802794,0.002,4446.7,4445.7,2.24936455]
[1755271803012,0.002,4446.7,4446.6,2.24890927]
[1755271803228,0.01949774,4448.2,4446.1,2.24914356]
[1755271803441,0.01949774,4448.2,4446.9,2.24875756]
[1755271803638,0.01949774,4448.2,4446.2,6.2942]
[1755271803931,0.01949774,4448.2,4447.3,2.24854252]
[1755271804074,0.01949774,4448.2,4447.1,0.02248656]
[1755271804273,0.01949774,4448.2,4448.0,2.24818145]
[1755271804681,5.9646,4449.6,4448.1,0.4333]
[1755271804883,0.02250579,4449.5,4447.4,0.4333]
[1755271805207,1.3956,4449.6,4448.0,2.24819148]
[1755271805415,1.3956,4449.6,4447.7,0.02248353]
[1755271805575,0.002,4449.6,4449.4,2.24748349]
[1755271805976,10.0,4450.0,4449.4,2.24748349]
[1755271805977,4.90118325,4450.0,4449.9,2.24724151]
[1755271806194,1e-08,4450.1,4449.9,2.71074151]
[1755271806405,1e-08,4450.1,4449.9,2.24724151]
[1755271806605,1e-08,4450.1,4449.9,2.24723162]
[1755271807112,1e-08,4450.1,4450.0,0.4635]
[1755271807511,1e-08,4450.1,4448.4,2.24799928]
[1755271807697,1.7857,4450.0,4448.7,2.24780818]
[1755271807902,1.7857,4450.0,4446.1,4.552]
[1755271807903,0.46770579,4450.0,4446.1,4.552]
[1755271808126,1.7857,4449.9,4446.9,12.1287994]
[1755271808444,1e-08,4450.1,4450.0,2.24719101]
[1755271808611,1e-08,4450.1,4450.0,2.26966292]
[1755271808931,5.8492,4452.4,4450.0,2.26966292]
[1755271808932,5.404,4452.4,4450.0,1.84]
[1755271809117,5.404,4452.4,4450.2,3.0]
[1755271809434,5.404,4452.4,4452.1,2.2461191]
[1755271809592,5.404,4452.4,4450.4,3.0]
[1755271809593,0.002,4453.5,4451.7,2.24633286]
[1755271809796,0.002,4453.5,4453.4,2.24547536]
[1755271810324,4.545,4454.5,4453.5,2.24541074]
[1755271810521,6.78992813,4454.5,4453.4,2.24544056]
[1755271810859,6.78992813,4454.5,4452.0,2.24618149]
[1755271810860,0.46770579,4454.4,4451.4,0.4635]
[1755271810997,0.02250579,4454.3,4448.8,0.31]
[1755271811193,0.112,4449.6,4448.9,0.112]
[1755271811432,4.562,4449.6,4448.5,2.24792475]
[1755271811731,4.561,4449.8,4449.2,0.112]
[1755271811938,0.112,4450.2,4449.2,0.112]
[1755271812091,4.568,4449.7,4447.8,2.24828932]
[1755271812291,4.568,4449.7,4449.2,0.0008]
[1755271812292,0.112,4449.7,4449.2,0.0008]
[1755271812644,0.112,4451.3,4449.7,2.24734251]
[1755271812943,4.563,4451.5,4449.6,0.112]
[1755271812944,4.58550579,4451.2,4449.6,0.112]
[1755271813107,4.563,4451.2,4449.2,0.0008]
[1755271813299,0.112,4450.5,4449.8,0.112]
[1755271813496,4.563,4451.2,4449.2,0.0008]
[1755271813497,0.112,4449.9,4449.2,0.0008]
[1755271813831,0.112,4449.4,4449.2,0.0008]
[1755271814034,1.7857,4450.4,4449.3,2.24754455]
[1755271814331,0.112,4450.5,4449.3,0.112]
[1755271814535,4.564,4451.8,4449.2,0.48677595]
[1755271814737,0.112,4451.4,4450.3,0.112]
[1755271815030,0.112,4451.1,4451.0,2.24668613]
[1755271815232,0.112,4451.8,4451.0,0.112]
[1755271815530,1.3405,4452.3,4451.6,2.35835194]
[1755271815531,0.112,4452.3,4451.6,2.35835194]
[1755271815730,0.112,4452.3,4451.6,0.112]
[1755271815948,1.80820579,4452.2,4449.0,2.24766892]
[1755271816150,0.112,4452.3,4449.0,2.24766892]
[1755271816151,0.13450579,4452.3,4449.2,0.02327595]
[1755271816310,0.112,4452.3,4449.4,0.55]
[1755271816511,4.557,4452.6,4449.8,0.55]
[1755271816711,0.112,4452.5,4451.9,2.24623194]
[1755271816914,0.112,4452.5,4452.2,2.24607361]
[1755271817223,4.557,4452.6,4452.1,0.112]
[1755271817421,1.80820579,4452.5,4450.4,2.24695456]
[1755271817619,1.80820579,4452.5,4449.7,2.71083605]
[1755271817620,0.112,4451.6,4451.5,2.24642401]
[1755271817848,0.112,4451.6,4451.0,0.112]
[1755271818061,0.112,4451.6,4449.5,3.0]
[1755271818062,1.7857,4451.6,4449.5,2.24744353]
[1755271818214,0.112,4451.2,4450.9,2.24673587]
[1755271818412,0.112,4451.2,4450.6,0.112]
[1755271818710,0.112,4451.2,4451.1,2.24663566]
[1755271818911,0.112,4451.2,4449.1,3.38782169]
[1755271819159,0.112,4451.2,4451.1,2.24663566]
[1755271819338,1.8977,4451.2,4450.4,0.112]
[1755271819541,0.112,4451.2,4450.4,0.112]
[1755271820061,0.112,4450.5,4449.8,2.24727117]
[1755271820212,2.24684577,4450.7,4449.6,0.112]
[1755271820213,0.112,4450.2,4449.6,0.112]
[1755271820412,0.112,4449.7,4449.2,0.0008]
[1755271820621,0.112,4449.7,4449.6,2.24739302]
[1755271821027,4.534,4450.4,4450.1,2.24709373]
[1755271821280,0.112,4450.6,4449.6,0.112]
[1755271821424,4.533,4450.7,4450.5,2.24693854]
[1755271821626,1.8977,4450.6,4450.0,0.112]
[1755271821928,0.02250579,4450.5,4449.2,0.0008]
[1755271822188,1.80820579,4450.5,4449.2,0.0008]
[1755271822379,1.80820579,4450.5,4446.6,0.17121285]
[1755271822380,12.1287994,4449.5,4446.6,0.84650285]
[1755271822680,0.1128,4447.7,4447.0,0.1128]
[1755271822823,0.1128,4447.7,4447.1,2.24865642]
[1755271823025,5.398,4448.6,4447.2,0.02248605]
[1755271823225,0.1128,4448.1,4447.3,0.1128]
[1755271823495,1.7857,4450.1,4447.4,0.4635]
[1755271823791,1.7857,4450.1,4447.5,3.0]
[1755271824087,4.536,4450.6,4448.2,2.24805922]
[1755271824224,4.536,4450.6,4450.0,2.24715255]
[1755271824625,1.7857,4450.9,4448.4,2.24799928]
[1755271824868,1.3405,4450.9,4448.5,1.03597948]
[1755271825074,5.398,4451.0,4449.1,0.55]
[1755271825230,5.398,4451.0,4449.2,0.4635]
[1755271825635,0.4452,4450.9,4448.9,2.24774663]
[1755271825861,0.4452,4450.9,4448.5,3.4635]
[1755271826059,5.3972,4451.0,4448.8,0.02247797]
[1755271826261,4.523,4450.9,4450.4,2.24693861]
[1755271826563,2.2460342,4452.3,4449.9,2.24721664]
[1755271826767,2.2460342,4452.3,4449.4,2.24749404]
[1755271826768,2.24626896,4451.9,4451.0,2.24667543]
[1755271826966,1.80820579,4451.8,4449.3,2.24754455]
[1755271827124,1.7857,4451.8,4449.4,0.02247494]
[1755271827327,1.7857,4451.8,4451.2,2.24654912]
[1755271827533,1.7857,4451.8,4449.4,2.8199645]
[1755271827534,4.516,4451.7,4448.3,12.1287994]
[1755271827889,1.80820579,4451.6,4448.5,4.141]
[1755271828180,1.80820579,4451.6,4448.3,0.4635]
[1755271828181,1.7857,4451.5,4448.3,0.4635]
[1755271828477,1.7857,4451.5,4447.3,2.24951276]
[1755271828478,3.55,4451.0,4447.5,2.24845418]
[1755271828710,0.55,4450.8,4447.4,2.24850474]
[1755271828907,3.0,4450.1,4447.3,0.001]
[1755271829119,2.24759371,4449.3,4447.5,2.24845418]
[1755271829311,1.7857,4449.2,4447.4,2.24850474]
[1755271829481,4.511,4449.1,4448.4,2.2479575]
[1755271829677,1.7857,4449.2,4447.5,2.24845418]
[1755271830012,1.7857,4449.2,4447.3,0.001]
[1755271830166,1.3405,4449.2,4447.3,0.001]
[1755271830366,1.3405,4449.2,4447.4,2.24850474]
[1755271830676,1.3405,4449.2,4448.4,2.24797228]
[1755271830882,2.24780148,4448.8,4447.9,2.24822128]
[1755271831086,1.7857,4448.7,4447.4,2.24850474]
[1755271831408,1.7857,4448.7,4447.5,0.02248454]
[1755271831409,4.499,4448.7,4447.5,0.02248454]
[1755271831609,4.498,4448.6,4447.3,0.001]
[1755271831918,4.495,4448.5,4447.3,0.001]
[1755271832210,0.46275939,4448.4,4447.3,0.001]
[1755271832409,0.46275939,4448.3,4447.3,0.001]
[1755271832723,4.491,4448.8,4447.3,0.001]
[1755271832868,1.3405,4448.5,4447.3,0.001]
[1755271833069,0.46347262,4448.4,4447.3,0.001]
[1755271833293,0.1128,4447.9,4447.3,0.1138]
[1755271833507,0.46347262,4448.1,4447.5,2.24841294]
[1755271833710,0.1128,4447.9,4447.3,0.1138]
[1755271833870,4.487,4447.8,4447.3,0.1138]
[1755271834071,0.1128,4447.9,4447.8,2.24830253]
[1755271834277,4.487,4447.9,4447.4,2.24850474]
[1755271834476,0.1128,4447.8,4447.3,0.001]
[1755271834705,0.1128,4447.4,4447.3,0.001]
[1755271835114,0.57627262,4447.6,4447.3,0.001]
[1755271835329,4.482,4448.2,4447.3,0.001]
[1755271835509,0.1128,4448.1,4447.4,0.1128]
[1755271835818,0.1128,4448.1,4448.0,2.24820143]
[1755271836014,4.481,4448.3,4447.9,0.1128]
[1755271836409,1.932,4448.2,4447.3,0.001]
[1755271836610,4.5908,4448.1,4447.5,0.1128]
[1755271836785,4.5908,4448.1,4448.0,2.24820143]
[1755271836981,4.478,4448.1,4447.3,0.001]
[1755271837228,4.478,4448.1,4448.0,2.24820143]
[1755271837709,4.475,4448.7,4447.9,2.24825198]
[1755271837918,4.475,4448.7,4448.2,0.1128]
[1755271838128,1.932,4448.6,4447.9,0.1128]
[1755271838290,0.112,4448.5,4448.1,2.24810126]
[1755271838495,0.112,4448.5,4447.3,2.24954443]
[1755271838496,0.46302261,4449.1,4447.7,2.24832564]
[1755271838724,4.467,4448.8,4447.4,2.24850474]
[1755271838887,0.1128,4448.3,4447.7,0.1128]
[1755271839079,0.1128,4448.3,4447.9,2.24824803]
[1755271839382,1.932,4448.2,4447.7,0.1128]
[1755271839584,4.465,4448.1,4447.3,0.001]
[1755271839784,4.465,4448.1,4447.5,2.24840492]
[1755271840312,0.46338743,4448.0,4447.3,0.001]
[1755271840492,4.465,4448.1,4447.3,0.001]
[1755271840493,0.1128,4447.6,4447.3,0.001]
[1755271840914,0.46338743,4448.0,4447.5,0.1128]
[1755271841116,0.76996638,4448.6,4447.3,2.24952738]
[1755271841117,4.456,4448.6,4448.5,2.24794707]
[1755271841320,6.85193832,4448.6,4447.4,2.24850474]
[1755271841507,6.85193832,4448.6,4448.1,2.24814043]
[1755271841508,0.46393832,4448.5,4448.1,2.24814043]
[1755271841711,1.95450579,4448.4,4447.3,0.001]
[1755271841931,0.48644411,4448.3,4447.3,0.001]
[1755271842232,2.24895985,4446.5,4446.4,0.001]
[1755271842552,2.24922231,4446.0,4443.8,2.71188356]
[1755271842824,5.49691536,4446.5,4443.9,2.25027565]
[1755271842825,1.932,4446.1,4443.9,2.25027565]
[1755271843025,4.452,4446.0,4443.9,2.25027565]
[1755271843200,2.24935362,4445.8,4444.9,2.2497575]
[1755271843573,1.932,4445.7,4443.4,0.16639165]
[1755271843707,2.24946439,4445.6,4443.4,0.16639165]
[1755271843892,2.24948121,4445.5,4444.6,2.24989169]
[1755271844226,2.24958116,4445.3,4442.8,2.2508328]
[1755271844543,4.443,4445.2,4444.4,2.24998898]
[1755271844683,4.443,4445.2,4442.7,0.4616]
[1755271844885,1.932,4445.4,4442.9,2.25078214]
[1755271845086,4.438,4445.3,4444.9,2.24976187]
[1755271845304,1.932,4445.2,4445.0,2.24966908]
[1755271845537,1.932,4445.2,4444.8,2.24978053]
[1755271845854,1.932,4446.1,4446.0,2.24921277]
[1755271845987,8.61618164,4446.1,4445.2,2.24959879]
[1755271846337,0.48518703,4446.0,4443.8,2.25032629]
[1755271846642,0.48518703,4446.0,4443.1,3.0]